Cogmind - Beta 14 @@@ ROGUE MODE // 2024.08.27 @ 22:32:02 Player: TheRealTurtle Result: Destroyed by G-34 Mercenary with Small Laser Performance ------------- Evolutions (1) 500 Regions Visited (3) 600 Robots Destroyed (31) 155 Value Destroyed (715) 715 Prototype IDs (0) 0 Alien Tech Used (0) 0 Bonus (29) 29 TOTAL SCORE: 1999 Bonus ------- High Alert Combat Kills 29 Cogmind --------- Core Integrity 0/400 Matter 300/300 Energy 100/100 System Corruption 0% Temperature Cool (6) Movement Core (300) Ox5 Location -9/Materials Parts ------- > --- POWER (1) -------- (None) > --- PROPULSION (3) --- (None) > --- UTILITY (3) ------ Small Storage Unit Medium Storage Unit > --- WEAPON (2) ------- Hammer > --- INVENTORY (10) --- Large Storage Unit Medium Matter Pod (100) Recoil Stabilizer Peak State ------------ > --- POWER ------------ Light Deuterium Engine > --- PROPULSION ------- Wheel Wheel > --- UTILITY ---------- Small Storage Unit Medium Storage Unit Light Armor Plating > --- WEAPON ----------- Heavy Assault Rifle Grenade Launcher > --- INVENTORY -------- Ion Engine Light Deuterium Engine Aluminum Leg Aluminum Leg Large Storage Unit Light Armor Plating Assault Rifle Assault Rifle Light Assault Rifle Hammer [Rating: 12] Favorites ----------- Power Ion Engine Engine Ion Engine Propulsion Aluminum Leg Leg Aluminum Leg Wheel Wheel Flight Unit Flight Unit Utility Small Storage Unit Device Heat Sink Storage Small Storage Unit Protection Light Armor Plating Weapon Grenade Launcher Energy Cannon Beam Cannon Ballistic Gun Assault Rifle Launcher Grenade Launcher Impact Weapon Hammer Build | -11 -10 -10 -9 ------- Run | Yrd Mat Min Mat Slots Evolved 2 | . . . 2 Power . | . . . . Propulsion 1 | . . . 1 Utility 1 | . . . 1 Weapon . | . . . . Parts Attached 28 | 7 2 1 18 Power 4 | 1 . 1 2 Engine 4 | 1 . 1 2 Core . | . . . . Reactor . | . . . . Propulsion 8 | 2 . . 6 Treads . | . . . . Leg 5 | 2 . . 3 Wheel 2 | . . . 2 Hover . | . . . . Flight 1 | . . . 1 Utility 5 | 1 1 . 3 Device 1 | . . . 1 Storage 2 | 1 . . 1 Processor . | . . . . Hackware . | . . . . Protection 2 | . 1 . 1 Artifact . | . . . . Weapon 11 | 3 1 . 7 Energy Gun . | . . . . Energy Cannon 3 | . . . 3 Ballistic Gun 4 | 3 . . 1 Ballistic Cannon . | . . . . Launcher 2 | . 1 . 1 Special Weapon . | . . . . Impact Weapon 2 | . . . 2 Slashing Weapon . | . . . . Piercing Weapon . | . . . . Special Melee Weapon . | . . . . Unidentified Prototypes . | . . . . Parts Lost 14 | . . . 14 Power 3 | . . . 3 Propulsion 5 | . . . 5 Utility 2 | . . . 2 Weapon 4 | . . . 4 Highest Loss Streak 4 | . . . 4 To Critical Strikes 1 | . . . 1 Average Slot Usage (%) 87 | . 91 100 79 Engine 11 | . 14 14 9 Leg 15 | . 28 28 5 Wheel 8 | . . . 15 Flight 1 | . . . 1 Storage 18 | . 14 14 22 Protection 8 | . 6 14 5 Energy Cannon 6 | . . . 11 Ballistic Gun 7 | . 15 14 1 Launcher 7 | . 12 14 3 Impact Weapon 2 | . . . 3 Peak Build Rating 12 | 6 7 10 12 Average Rating 8 | 4 6 7 9 On Entrance 5 | . 6 7 10 Naked Turns . | . . . . Heaviest Build 29 | 14 18 18 29 Greatest Support 20 | 20 20 20 20 Greatest Overweight (x) 5 | . . . 5 Average Overweight (x) . | . . . 1 Largest Inventory Capacity 10 | 8 8 8 10 Average Capacity 8 | 7 8 8 9 Most Carried 10 | 6 8 8 10 Average Carried 6 | 3 7 7 7 Final Capacity 10 | 8 8 8 10 Final Carried 8 | 6 7 8 3 Class Distribution -------------------- 100% | Mutant Dominant Class ---------------- Mutant | -10/Materials Mutant | -10/Mines Mutant | -9/Materials Resources | -11 -10 -10 -9 ----------- Run | Yrd Mat Min Mat Matter Collected 677 | 193 87 69 328 Remotely . | . . . . Salvage Created 820 | . . 53 767 Parts 57 | . . 3 54 Haulers Intercepted . | . . . . Recyclers Shooed 1 | . . . 1 Parts Field Recycled . | . . . . Retrieved Matter . | . . . . Parts Self-Destructed . | . . . . Prevented . | . . . . Kills | -11 -10 -10 -9 ------- Run | Yrd Mat Min Mat Combat Hostiles Destroyed 29 | . . 6 23 Melee 3 | . . . 3 Guns 2 | . . 2 . Cannons 14 | . . . 14 AOE 7 | . . 4 3 Classes Destroyed 8 | . . 3 5 Worker 1 | . . . 1 Tunneler 1 | . . 1 . Recycler 1 | . . . 1 Watcher 2 | . . . 2 Swarmer 13 | . . 3 10 Grunt 9 | . . . 9 Sentry 4 | . . . 4 Assembled 3 | . . 3 . Best Kill Streak 14 | . . 4 14 Combat Bots Only 8 | . . 3 8 Max Kills in Single Turn 2 | . . 2 2 Gunslinging . | . . . . Exploded 2 | . . 2 1 Melee 1 | . . . 1 Uniques/NPCs Destroyed . | . . . . Combat | -11 -10 -10 -9 -------- Run | Yrd Mat Min Mat Hostile Shots Fired 192 | . . 17 175 Missed 39 | . . 4 35 Damage Taken 1834 | . . 244 1590 Core 432 | . . 24 408 Absorbed by Shields . | . . . . Core Remaining (%) 95 | 100 . 90 . Volleys Fired 48 | . . 9 39 Largest 2 | . . 2 2 Hottest 120 | . . 50 120 Shots Fired 87 | . . 14 73 Gun 9 | . . 9 . Cannon 66 | . . . 66 Launcher 12 | . . 5 7 Special . | . . . . Kinetic 9 | . . 9 . Thermal 66 | . . . 66 Explosive 12 | . . 5 7 Electromagnetic . | . . . . Robot Hit Streak 5 | . . 3 5 Robot Miss Streak 6 | . . 3 6 Penetration Max . | . . . . Secondary Targets . | . . . . Shots Hit Robots 55 | . . 5 50 Core Hits 41 | . . 12 29 Critical Kills 2 | . . . 2 Critical Parts Destroyed 2 | . . . 2 Critical Strikes 4 | . . . 4 Meltdown 1 | . . . 1 Smash 3 | . . . 3 Melee Attacks 21 | . . . 21 Impact 21 | . . . 21 Slashing . | . . . . Piercing . | . . . . Sneak Attacks . | . . . . Combat Hostiles . | . . . . Follow-up Attacks . | . . . . Damage Inflicted 1694 | . . 364 1330 Guns 47 | . . 47 . Cannons 718 | . . . 718 Explosions 554 | . . 317 237 Melee 375 | . . . 375 Ramming . | . . . . Kinetic 47 | . . 47 . Thermal 718 | . . . 718 Explosive 554 | . . 317 237 Electromagnetic . | . . . . Impact 375 | . . . 375 Slashing . | . . . . Piercing . | . . . . Highest Corruption . | . . . . Average Corruption . | . . . . Corruption Purged . | . . . . Corruption Blocked . | . . . . Overload Shots . | . . . . Overflow Damage 80 | . . . 80 Projectiles . | . . . . Explosions 19 | . . . 19 Melee 61 | . . . 61 Knockbacks 1 | . . . 1 Impact 1 | . . . 1 Kinetic . | . . . . Secondary . | . . . . Self-Inflicted Damage 164 | . . 57 107 Shots 5 | . . 3 2 Rammed . | . . . . Targets Rammed . | . . . . Kicked . | . . . . Crushed . | . . . . Highest Temperature 544 | . . 15 544 Average Temperature 135 | . . 14 137 Received Heat Transfer 468 | . . . 468 Effects 7 | . . . 7 Shutdowns 1 | . . . 1 Energy Bleed 2 | . . . 2 Damage (major) 4 | . . . 4 Siege Activations . | . . . . Robots Corrupted 2 | . . . 2 Combat Hostiles 2 | . . . 2 Parts Fried 2 | . . . 2 Impact Corruptions 3 | . . . 3 Robots Melted 1 | . . . 1 Combat Hostiles 1 | . . . 1 Parts Melted 4 | . . . 4 Heat Transferred 1517 | . . . 1517 Parts Sabotaged . | . . . . Parts Stolen . | . . . . Parts Stripped . | . . . . Power Chain Reactions . | . . . . Alert | -11 -10 -10 -9 ------- Run | Yrd Mat Min Mat Peak Influence 443 | . . 145 443 Initial . | . . . . Average 131 | . . 120 191 Maximum Alert Level 2 | . . . 2 Low Security (%) 80 | 100 100 100 61 Level 1 6 | . . . 13 Level 2 13 | . . . 24 Level 3 . | . . . . Level 4 . | . . . . Level 5 . | . . . . High Security . | . . . . Max Security . | . . . . Squads Dispatched 4 | . 1 . 3 Investigation 2 | . . . 2 Extermination . | . . . . Reinforcement 2 | . 1 . 1 Assault . | . . . . Garrison . | . . . . Intercept . | . . . . Searches Triggered . | . . . . Construction Impeded . | . . . . Haulers Reinforced . | . . . . Active Scanning Responses . | . . . . Cargo Convoy Interrupts . | . . . . Stealth | -11 -10 -10 -9 --------- Run | Yrd Mat Min Mat Distress Signals 3 | . . . 3 Communications Jammed . | . . . . Distress Signals . | . . . . Times Spotted 42 | . 3 7 32 Peak Tracking Total 9 | . 1 3 9 Tactical Retreats 3 | . . 1 2 Traps | -11 -10 -10 -9 ------- Run | Yrd Mat Min Mat Traps Triggered 1 | . . . 1 Indirectly . | . . . . Trap Hack Attempts . | . . . . Triggered . | . . . . Disarmed . | . . . . Reprogrammed . | . . . . Reused . | . . . . Traps Extracted . | . . . . Installed . | . . . . Triggered . | . . . . Machines | -11 -10 -10 -9 ---------- Run | Yrd Mat Min Mat Machines Disabled 4 | . . 1 3 Max in Single Turn 2 | . . 1 2 Machines Repaired . | . . . . Machines Dismantled . | . . . . Machines Sabotaged . | . . . . Overloaded Fab Kills . | . . . . Hacking | -11 -10 -10 -9 --------- Run | Yrd Mat Min Mat Machines Accessed 2 | . . . 2 Terminals 2 | . . . 2 Fabricators . | . . . . Repair Stations . | . . . . Recycling Units . | . . . . Scanalyzers . | . . . . Garrison Access . | . . . . Total Hacks 7 | . . . 7 Successful 2 | . . . 2 Failed 5 | . . . 5 Catastrophic 1 | . . . 1 Database Lockouts . | . . . . Manual . | . . . . Terminals 7 | . . . 7 Fabricators . | . . . . Repair Stations . | . . . . Recycling Units . | . . . . Scanalyzers . | . . . . Garrison Access . | . . . . Terminal Hacks 2 | . . . 2 Robot Analysis 1 | . . . 1 Alert Level 1 | . . . 1 Fabricator Hacks . | . . . . Repair Station Hacks . | . . . . Recycling Unit Hacks . | . . . . Scanalyzer . | . . . . Garrison Access Hacks . | . . . . Unauthorized Hacks . | . . . . Terminals . | . . . . Fabricators . | . . . . Repair Stations . | . . . . Recycling Units . | . . . . Scanalyzers . | . . . . Garrison Access . | . . . . Data Cores Recovered . | . . . . Used . | . . . . Hacking Detections 2 | . . . 2 Full Trace Events 1 | . . . 1 Feedback Events . | . . . . Feedback Blocked . | . . . . Robot Schematics Acquired . | . . . . Robots Built . | . . . . Authchips . | . . . . Time . | . . . . Total Robot Build Rating . | . . . . Part Schematics Acquired . | . . . . Parts Built . | . . . . Authchips . | . . . . Time . | . . . . Total Part Build Rating . | . . . . Parts Repaired . | . . . . Time . | . . . . Parts Recycled . | . . . . Recycled Matter . | . . . . Retrieved Matter . | . . . . Retrieved Components . | . . . . Parts Scanalyzed . | . . . . Part Schematics Acquired . | . . . . Parts Damaged . | . . . . Bothacking | -11 -10 -10 -9 ------------ Run | Yrd Mat Min Mat Used RIF Installer . | . . . . Robots Hacked . | . . . . Non-combat . | . . . . Combat . | . . . . Robot Hacks Applied . | . . . . Relay Couplers Released . | . . . . Fabnet Peak Effective % . | . . . . Robots Rewired . | . . . . Allies Hacked . | . . . . Hacks Repelled . | . . . . Allies | -11 -10 -10 -9 -------- Run | Yrd Mat Min Mat Total Allies . | . . . . Largest Group . | . . . . Highest-Rated Group . | . . . . Highest-Rated Ally . | . . . . Total Orders . | . . . . Ally Attacks . | . . . . Total Damage . | . . . . Kills . | . . . . Allies Corrupted . | . . . . Allies Melted . | . . . . Intel | -11 -10 -10 -9 ------- Run | Yrd Mat Min Mat Robot Analysis Total 1 | . . . 1 Derelict Logs Recovered . | . . . . Drone Launches . | . . . . Drone Recoveries . | . . . . Exploration | -11 -10 -10 -9 ------------- Run | Yrd Mat Min Mat Turns Passed 1529 | 81 249 400 799 Spaces Moved 1030 | 58 202 310 460 Core 12 | 10 . . 2 Treads . | . . . . Legs 609 | 48 202 310 49 Wheels 409 | . . . 409 Hover . | . . . . Flight . | . . . . Fastest Speed 50 | 50 120 120 95 Average Speed 115 | 107 120 120 111 Slowest Speed 300 | 120 120 120 300 Overloaded Moves . | . . . . Propulsion Burnouts . | . . . . Robots Hopped . | . . . . Cave-ins Triggered . | . . . . Exploration Rate (%) 35 | 4 30 68 41 Regions Visited 3 Branch Regions 1 Pre-discovered Areas . | . . . . Known Exits Taken . | . . . . Unknown Exits Taken 3 | 1 1 1 . Scrap Searched . | . . . . Spaces Dug . | . . . . Terrain Destroyed 105 | . . 41 64 Melee . | . . . . Projectile . | . . . . AOE 105 | . . 41 64 Terrain Rammed . | . . . . Walls Destroyed . | . . . . Machines Disabled . | . . . . Actions | -11 -10 -10 -9 --------- Run | Yrd Mat Min Mat Total 1244 | 76 209 324 635 Wait 81 | . . 2 79 Move 1027 | 57 201 309 460 Hop . | . . . . Pick Up 29 | 12 4 2 11 Fast Attach . | . . . . Attach 19 | 6 1 . 12 Detach 1 | . . . 1 Swap 9 | 1 1 1 6 Drop 9 | . 2 1 6 Fire 48 | . . 9 39 Melee 21 | . . . 21 Ram . | . . . . Kick . | . . . . Crush . | . . . . Escape Stasis . | . . . . Rewire . | . . . . Trap . | . . . . Miscellaneous . | . . . . Route ------- -11/Scrapyard -10/Materials -10/Mines (discovered 2 exits: *Mat x2) -9/Materials History --------- Turn | Location | Event 3 | -11/Scrapyard | Discovered new exit (range 15) 82 | -11/Scrapyard | Entered Materials 302 | -10/Materials | Build established: Mutant 317 | -10/Materials | Discovered new exit (range 7) 331 | -10/Materials | Entered Mines 386 | -10/Mines | Met a Derelict bent on vengeance 523 | -10/Mines | Assembled infested the area 528 | -10/Mines | Assisted by a Guerilla fighting off Assembled 710 | -10/Mines | Discovered new exit (range 4) 725 | -10/Mines | Discovered new exit (range 4) 731 | -10/Mines | Entered Materials 731 | -9/Materials | Evolved 2 slots: Propulsion x1, Utility x1 1337 | -9/Materials | Lost 4 parts (3n1w) 1352 | -9/Materials | Destroyed 8 combat bots 1499 | -9/Materials | Core integrity fell below 50% 1507 | -9/Materials | Core integrity fell below 20% 1525 | -9/Materials | Lost 4 parts (1p2n1w) 1530 | -9/Materials | Destroyed by G-34 Mercenary with Small Laser Last Messages --------------- R-06 Scavenger collects Ion Engine. K-01 Serf collects debris. Acquired 15 matter. Material Processor disabled. Ion Engine destroyed. Critical hit (Burn: +37). Aluminum Leg destroyed. Beam Cannon destroyed. Flight Unit destroyed. K-01 Serf collects debris. Destroyed Heat Sink. Y-45 Defender system corrupted by crushing effect. Y-45 Defender system terminally corrupted. Heat Sink fried. K-01 Serf collects debris. R-06 Scavenger collects Corrupted Hvy. Assault Rifle. Critical hit (Burn: +37). K-01 Serf collects debris. Map ----- +----------------------------------------------------+ | # """ # #?????? #?????????# #????????? | | # """ # #??????? #????????## ##???????? | | # ###+##???????? #????????# #???????? | | # #?# #??????????#????????# #???????? | | #####+######+###?????????????????# % +???????? | | #???# # #?????????????????# #???????? | | #???# # #?????????????????# #???????? | | #???# # #?????????????????## ##???????? | | ##### # #??????????????????# #????????? | | # #????? ??????????# #????????? | | + #???? ??????????# #????????? | | # #????# ?????????## ##???????? | | ######## #????# #######+## #???????? | | #??????# #????+ %" % #???????? | | #??????##########????# ! % +???????? | | +????????????????????# # ??????? | | #????????????????????# %#######/## # ??????? | | #????????????????????# ## % ## ##?#?????? | | #????????????????????# ## % ## #????????? | | ??????????????????????+ ## "Y" !## +????????? | | ??????????????????????# ## """ ## #????????? | | ?????????????#######??# #######+### #????????? | | ?????????????# # r# # #????????? | | ???????????????"T" + #* """ # #????????? | | ??????????????????????# %g% """"" # #????????? | | ??????????????????????# r@# """"" + #????????? | | ??????????????????????# # """" # ????????? | | ??????????????????????# g# """ # ????????? | | ??????????????????##### r# #? ???????? | | ???????????????+ + #?? ??????? | | ????????????????####### ###########??? ?????? | | ??????????????????????# ###?????????????? ???? | | ??????????????????????# ?????????????????? ??? | | ??????????????????????# ?????????????????? ???? | | ??????????????????????# ??????????????????? ???? | | ??????????????????????# ?????????????????????????? | | ??????????????????????# ?????????????????????????? | | ??????????????????????# ?????????????????????????? | | ?????????????????????????????????????????????????? | | ?????????????????????????????????????????????????? | | ?????????????????????????????????????????????????? | | ?????????????????????????????????????????????????? | | ?????????????????????????????????????????????????? | | ?????????????????????????????????????????????????? | | ?????????????????????????????????????????????????? | | ?????????????????????????????????????????????????? | | ?????????????????????????????????????????????????? | | ?????????????????????????????????????????????????? | | ?????????????????????????????????????????????????? | | ?????????????????????????????????????????????????? | +----------------------------------------------------+ Best States ------------- Heat Dissipation 38 Energy Generation 14 Energy Capacity 250 Matter Stores 300 Matter Capacity 300 Sight Range 16 Terrain Scan Density 10 Armor Coverage 150 Evasion (%) 55 Item Schematics ----------------- None Robot Schematics ------------------ None Fabricated ------------ Nothing Alien Tech Used ----------------- None Achievements -------------- None Challenges ------------ None Game ------ Seed CorruptionPlasmaLaser Manual? 0 Play Time 00:19:27 Cumulative 14.8 hours Start 2024.08.27 @ 22:13:19 End 2024.08.27 @ 22:32:02 Sessions 1 Manual Loads 0 Difficulty Rogue Special Mode None Game No. 27 Rogue 27 Adventurer 0 Explorer 0 Win Type - Total 0 Types 0/0/0/0/0/0/0/0/0 Lore% 12 Gallery% 21 Achievement% 17 Wizard Run 0 Options --------- Layout 1 ASCII 0 Keyboard 0 Movement Mouse Keybinds 0 Fullscreen 1 Font 24/Smallcaps Map View 50x35 Zoom Use 0% Tactical HUD 0 Map Filters NONE Filters NONE Steam 1 RUN: 5eca9747-e911-4b65-8e7d-7625d1e53ca8